fUST/lending_fUST_20240830
["ID","MTS","AMOUNT","RATE_DAILY","PERIOD"]
[336668405,1725006647841,-500.0,0.0003863,120]
[336668407,1725006647850,-500.0,0.0003863,120]
[336668409,1725006647861,-500.0,0.0003863,120]
[336668411,1725006647870,-500.0,0.0003863,120]
[336668413,1725006647880,-500.0,0.0003863,120]
[336668415,1725006647890,-598.29894003,0.0003863,120]
[336668417,1725006647899,-938.61,0.0003863,120]
[336668419,1725006647908,-1018.82,0.0003863,120]
[336668421,1725006647917,-500.0,0.0003863,120]
[336668423,1725006647927,-500.0,0.0003863,120]
[336668425,1725006647936,-500.0,0.0003863,120]
[336668427,1725006647945,-225.02084156,0.0003863,120]
[336668429,1725006647954,-500.0,0.0003863,120]
[336668431,1725006647964,-500.0,0.0003863,120]
[336668433,1725006647975,-529.22,0.0003863,120]
[336668435,1725006647984,-500.0,0.0003863,120]
[336668437,1725006647994,-500.0,0.0003863,120]
[336668439,1725006648003,-500.0,0.0003863,120]
[336668441,1725006648013,-500.0,0.0003863,120]
[336668443,1725006648022,-500.0,0.0003863,120]
[336668445,1725006648033,-500.0,0.0003863,120]
[336668447,1725006648042,-437.35340175,0.0003863,120]
[336668449,1725006648052,-500.0,0.0003863,120]
[336668451,1725006648061,-500.0,0.0003863,120]
[336668452,1725006648070,-500.0,0.0003863,120]
[336668454,1725006648079,-500.0,0.0003863,120]
[336668456,1725006648088,-2084.52,0.0003863,120]
[336668458,1725006648097,-500.0,0.0003863,120]
[336668460,1725006648107,-500.0,0.0003863,120]
[336668462,1725006648117,-500.0,0.0003863,120]
[336668463,1725006648127,-1000.0,0.0003863,30]
[336668464,1725006648135,-173.284743,0.0003863,14]
[336668465,1725006648222,-500.0,0.0003863,30]
[336668466,1725006648234,-151.0,0.0003863,14]
[336668467,1725006648243,-500.0,0.0003863,120]
[336668468,1725006648253,-173.284743,0.0003863,14]
[336668469,1725006648263,-500.0,0.0003863,120]
[336668470,1725006648272,-500.0,0.0003863,120]
[336668471,1725006648282,-500.0,0.0003863,120]
[336668473,1725006648292,-500.0,0.0003863,120]
[336668475,1725006648301,-500.0,0.0003863,120]
[336668477,1725006648311,-500.0,0.0003863,120]
[336668479,1725006648320,-500.0,0.0003863,120]
[336668481,1725006648329,-500.0,0.0003863,120]
[336668483,1725006648338,-259.504183,0.0003863,14]
[336668485,1725006648348,-500.0,0.0003863,120]
[336668487,1725006648357,-500.0,0.0003863,120]
[336668489,1725006648367,-500.0,0.0003863,120]
[336668491,1725006648376,-1373.0,0.0003863,120]
[336668492,1725006648386,-259.504183,0.0003863,14]
[336668494,1725006648395,-500.0,0.0003863,120]
[336668496,1725006648404,-657.52,0.0003863,120]
[336668499,1725006648414,-500.0,0.0003863,120]
[336668501,1725006648424,-1026.36,0.0003863,120]
[336668503,1725006648433,-539.08323609,0.0003863,120]
[336668504,1725006648442,-553.29,0.0003863,120]
[336668506,1725006648452,-500.0,0.0003863,120]
[336668508,1725006648462,-373.234395,0.0003863,14]
[336668510,1725006648471,-500.0,0.0003863,120]
[336668512,1725006648482,-500.0,0.0003863,120]
[336668514,1725006648491,-500.0,0.0003863,120]
[336668516,1725006648501,-373.234395,0.0003863,14]
[336668518,1725006648511,-500.0,0.0003863,120]
[336668520,1725006648520,-466.56255436,0.0003863,120]
[336668522,1725006648530,-500.0,0.0003863,120]
[336668524,1725006648541,-500.0,0.0003863,120]
[336668526,1725006648550,-500.0,0.0003863,2]
[336668528,1725006648560,-500.0,0.0003863,120]
[336668530,1725006648570,-1762.24,0.0003863,120]
[336668532,1725006648579,-500.0,0.0003863,120]
[336668534,1725006648589,-500.0,0.0003863,20]
[336668536,1725006648599,-500.0,0.0003863,120]
[336668538,1725006648610,-500.0,0.0003863,120]
[336668540,1725006648620,-500.0,0.0003863,120]
[336668542,1725006648633,-500.0,0.0003863,120]
[336668544,1725006648643,-500.0,0.0003863,120]
[336668546,1725006648653,-500.0,0.0003863,120]
[336668548,1725006648662,-500.0,0.0003863,120]
[336668550,1725006648673,-500.0,0.0003863,120]
[336668552,1725006648683,-500.0,0.0003863,120]
[336668554,1725006648693,-1200.0,0.00038664,7]
[336668556,1725006648704,-371.98,0.000387,14]
[336668558,1725006648715,-151.03,0.000387,14]
[336668560,1725006648726,-500.0,0.00038761,7]
[336668561,1725006648736,-150.0,0.00038775,2]
[336668562,1725006648747,-1200.0,0.0003879,7]
[336668563,1725006648756,-5465.4896872,0.00038793,2]
[336668564,1725006648766,-372.51,0.000388,30]
[336668565,1725006648776,-261.45273816,0.00038883,120]
[336668566,1725006648799,-500.0,0.00038883,120]
[336668567,1725006648810,-9297.45,0.000389,14]
[336668568,1725006648821,-500.0,0.00038904,120]
[336668569,1725006648831,-500.0,0.00038904,120]
[336668570,1725006648840,-500.0,0.00038904,120]
[336668572,1725006648851,-500.0,0.00038904,120]
[336668573,1725006648862,-500.0,0.00038904,120]
[336668574,1725006648872,-500.0,0.00038904,120]
[336668575,1725006648883,-500.0,0.00038904,120]
[336668576,1725006648892,-500.0,0.00038904,120]
[336668577,1725006648903,-500.0,0.00038904,120]
[336668579,1725006648914,-500.0,0.00038904,120]
[336668581,1725006648924,-500.0,0.00038904,120]
[336668583,1725006648935,-500.0,0.00038904,120]
[336668585,1725006648945,-500.0,0.00038904,120]
[336668587,1725006648954,-500.0,0.00038904,120]
[336668589,1725006648965,-500.0,0.00038904,2]
[336668591,1725006648976,-500.0,0.00038904,120]
[336668594,1725006648988,-601.95,0.00038904,120]
[336668596,1725006648998,-500.0,0.00038904,120]
[336668598,1725006649008,-500.0,0.00038904,120]
[336668600,1725006649018,-500.0,0.00038904,120]
[336668602,1725006649028,-500.0,0.00038904,120]
[336668604,1725006649039,-500.0,0.00038904,120]
[336668606,1725006649049,-500.0,0.00038904,120]
[336668608,1725006649058,-451.12413912,0.00038904,120]
[336668610,1725006649068,-507.52326248,0.00038904,120]
[336668612,1725006649077,-500.0,0.00038904,120]
[336668614,1725006649087,-500.0,0.00038904,120]
[336668616,1725006649096,-500.0,0.00038904,120]
[336668618,1725006649106,-500.0,0.00038904,120]
[336668620,1725006649118,-500.0,0.00038904,120]
[336668622,1725006649127,-500.0,0.00038904,120]
[336668625,1725006649138,-500.0,0.00038904,120]
[336668627,1725006649148,-500.0,0.00038904,120]
[336668629,1725006649158,-500.0,0.00038904,120]
[336668631,1725006649168,-500.0,0.00038904,120]
[336668633,1725006649179,-500.0,0.00038904,120]
[336668635,1725006649188,-151.0,0.00038904,14]
[336668637,1725006649198,-500.0,0.00038904,120]
[336668639,1725006649208,-151.0,0.00038904,14]
[336668641,1725006649218,-500.0,0.00038904,120]
[336668643,1725006649228,-500.0,0.00038904,120]
[336668645,1725006649238,-267.51,0.00038904,120]
[336668647,1725006649248,-500.0,0.00038904,120]
[336668649,1725006649258,-500.0,0.00038904,120]
[336668652,1725006649268,-500.0,0.00038904,120]
[336668654,1725006649278,-500.0,0.00038904,120]
[336668656,1725006649287,-500.0,0.00038904,120]
[336668658,1725006649296,-500.0,0.00038904,120]
[336668660,1725006649306,-500.0,0.00038904,120]
[336668662,1725006649315,-500.0,0.00038904,120]
[336668664,1725006649325,-500.0,0.00038904,120]
[336668666,1725006649335,-413.91,0.00038904,120]
[336668667,1725006649344,-411.10631778,0.00038904,120]
[336668668,1725006649354,-500.0,0.00038904,120]
[336668669,1725006649363,-500.0,0.00038904,120]
[336668670,1725006649373,-500.0,0.00038904,120]
[336668671,1725006649382,-500.0,0.00038904,120]
[336668672,1725006649393,-243.864212,0.00038904,14]
[336668673,1725006649406,-500.0,0.00038904,120]
[336668674,1725006649416,-151.0,0.00038904,14]
[336668675,1725006649426,-151.0,0.00038904,14]
[336668676,1725006649435,-235.483557,0.00038904,14]
[336668677,1725006649445,-500.0,0.00038904,120]
[336668678,1725006649454,-500.0,0.00038904,120]
[336668679,1725006649464,-205.156618,0.00038904,14]
[336668680,1725006649476,-205.156618,0.00038904,14]
[336668681,1725006649486,-500.0,0.00038904,120]
[336668682,1725006649496,-500.0,0.00038904,120]
[336668683,1725006649506,-1153.93,0.00038904,120]
[336668684,1725006649515,-155.560716,0.00038904,14]
[336668685,1725006649525,-373.00209406,0.00038904,120]
[336668686,1725006649535,-151.0,0.00038904,14]
[336668687,1725006649545,-155.560716,0.00038904,14]
[336668688,1725006649554,-205.03,0.00038904,120]
[336668689,1725006649563,-6248.44,0.00038904,8]
[336668690,1725006649573,-500.0,0.00038904,21]
[336668691,1725006649582,-836.76,0.00038904,120]
[336668692,1725006649592,-614.59196573,0.00038904,120]
[336668693,1725006649601,-622.96,0.00038904,120]
[336668694,1725006649611,-500.0,0.00038904,120]
[336668695,1725006649622,-500.0,0.00038904,120]
[336668696,1725006649636,-500.0,0.00038904,120]
[336668697,1725006649646,-500.0,0.00038904,120]
[336668698,1725006649655,-151.0,0.00038904,14]
[336668699,1725006649667,-500.0,0.00038904,120]
[336668700,1725006649676,-500.0,0.00038904,120]
[336668701,1725006649686,-151.0,0.00038904,14]
[336668702,1725006649696,-500.0,0.00038904,120]
[336668703,1725006649707,-335.73789634,0.00038904,120]
[336668704,1725006649717,-500.0,0.00038904,120]
[336668705,1725006649728,-151.0,0.00038904,14]
[336668706,1725006649738,-500.0,0.00038904,120]
[336668707,1725006649748,-151.0,0.00038904,14]
[336668708,1725006649757,-151.0,0.00038904,14]
[336668709,1725006649767,-500.0,0.00038904,120]
[336668710,1725006649777,-500.0,0.00038904,120]
[336668711,1725006649787,-228.080827,0.00038904,14]
[336668712,1725006649797,-500.0,0.00038904,120]
[336668713,1725006649808,-500.0,0.00038904,120]
[336668714,1725006649817,-228.080827,0.00038904,14]
[336668715,1725006649826,-500.0,0.00038904,120]
[336668716,1725006649836,-500.0,0.00038904,120]
[336668717,1725006649845,-500.0,0.00038904,120]
[336668718,1725006649856,-500.0,0.00038904,120]
[336668719,1725006649869,-500.0,0.00038904,120]
[336668720,1725006649879,-461.127098,0.00038904,14]
[336668721,1725006649889,-500.0,0.00038904,120]
[336668722,1725006649899,-151.0,0.00038904,14]
[336668723,1725006649909,-500.0,0.00038904,120]
[336668724,1725006649919,-461.127098,0.00038904,14]
[336668725,1725006649930,-748.578485,0.00038904,14]
[336668726,1725006649940,-500.0,0.00038904,120]
[336668727,1725006649950,-500.0,0.00038904,120]
[336668728,1725006649960,-748.578485,0.00038904,14]
[336668729,1725006649971,-151.0,0.00038904,14]
[336668730,1725006649983,-500.0,0.00038904,120]
[336668731,1725006649994,-500.0,0.00038904,120]
[336668732,1725006650005,-500.0,0.00038904,120]
[336668733,1725006650017,-504.79,0.00038904,7]
[336668734,1725006650028,-500.0,0.00038904,120]
[336668735,1725006650039,-500.0,0.00038904,120]
[336668736,1725006650049,-500.0,0.00038904,120]
[336668737,1725006650061,-500.0,0.00038904,120]
[336668738,1725006650071,-151.0,0.00038904,14]
[336668739,1725006650083,-500.0,0.00038904,120]
[336668740,1725006650094,-500.0,0.00038904,120]
[336668741,1725006650209,-152.66212,0.00038904,14]
[336668742,1725006650220,-500.0,0.00038904,60]
[336668743,1725006650230,-500.0,0.00038904,120]
[336668744,1725006650242,-500.0,0.00038904,120]
[336668745,1725006650252,-500.0,0.00038904,120]
[336668746,1725006650262,-500.0,0.00038904,120]
[336668747,1725006650272,-938.61,0.00038904,120]
[336668748,1725006650281,-1018.82,0.00038904,120]
[336668749,1725006650290,-500.0,0.00038904,120]
[336668750,1725006650299,-500.0,0.00038904,120]
[336668751,1725006650309,-500.0,0.00038904,120]
[336668752,1725006650319,-500.0,0.00038904,120]
[336668753,1725006650328,-500.0,0.00038904,120]
[336668754,1725006650337,-500.0,0.00038904,120]
[336668755,1725006650347,-500.0,0.00038904,120]
[336668756,1725006650356,-500.0,0.00038904,120]
[336668757,1725006650366,-635.57023737,0.00038904,120]
[336668758,1725006650376,-500.0,0.00038904,120]
[336668759,1725006650386,-500.0,0.00038904,120]
[336668760,1725006650395,-500.0,0.00038904,120]
[336668761,1725006650405,-500.0,0.00038904,120]
[336668762,1725006650415,-500.0,0.00038904,120]
[336668763,1725006650425,-2084.52,0.00038904,120]
[336668764,1725006650435,-506.04010127,0.00038904,120]
[336668765,1725006650444,-500.0,0.00038904,120]
[336668766,1725006650454,-634.71572538,0.00038904,30]
[336668767,1725006650464,-173.284743,0.00038904,14]
[336668768,1725006650474,-173.284743,0.00038904,14]
[336668769,1725006650484,-500.0,0.00038904,120]
[336668770,1725006650494,-151.0,0.00038904,14]
[336668771,1725006650504,-151.0,0.00038904,14]
[336668772,1725006650514,-173.284743,0.00038904,14]
[336668773,1725006650525,-173.284743,0.00038904,14]
[336668774,1725006650534,-500.0,0.00038904,120]
[336668775,1725006650546,-500.0,0.00038904,120]
[336668776,1725006650556,-500.0,0.00038904,120]
[336668777,1725006650567,-500.0,0.00038904,120]
[336668778,1725006650577,-500.0,0.00038904,120]
[336668779,1725006650587,-500.0,0.00038904,120]
[336668780,1725006650596,-500.0,0.00038904,120]
[336668781,1725006650606,-259.504183,0.00038904,14]
[336668782,1725006650616,-227.13915565,0.00038904,120]
[336668783,1725006650775,-272.86084435,0.00038904,120]
[336668784,1725006650786,-521.91904038,0.00038904,120]
[336668785,1725006650797,-1373.0,0.00038904,120]
[336668786,1725006650806,-500.0,0.00038904,120]
[336668787,1725006650816,-259.504183,0.00038904,14]
[336668788,1725006650825,-500.0,0.00038904,120]
[336668789,1725006650835,-657.52,0.00038904,120]
[336668790,1725006650845,-1026.36,0.00038904,120]
[336668791,1725006650854,-553.29,0.00038904,120]
[336668792,1725006650864,-500.0,0.00038904,120]
[336668793,1725006650874,-373.234395,0.00038904,14]
[336668794,1725006650884,-500.0,0.00038904,120]
[336668795,1725006650895,-373.234395,0.00038904,14]
[336668796,1725006650907,-530.28314291,0.00038904,120]
[336668797,1725006650918,-500.0,0.00038904,120]
[336668798,1725006650929,-373.234395,0.00038904,14]
[336668799,1725006650939,-373.234395,0.00038904,14]
[336668800,1725006650948,-500.0,0.00038904,120]
[336668801,1725006650958,-500.0,0.00038904,120]
[336668802,1725006650968,-500.0,0.00038904,120]
[336668803,1725006650978,-505.61935754,0.00038904,2]
[336668804,1725006650988,-500.0,0.00038904,120]
[336668805,1725006650998,-1762.24,0.00038904,120]
[336668806,1725006651007,-500.0,0.00038904,120]
[336668807,1725006651017,-533.29,0.00038904,120]
[336668808,1725006651027,-500.0,0.00038904,120]
[336668809,1725006651036,-500.0,0.00038904,120]
[336668810,1725006651046,-500.0,0.00038904,120]
[336668811,1725006651058,-500.0,0.00038904,120]
[336668812,1725006651068,-500.0,0.00038904,120]
[336668813,1725006651079,-500.0,0.00038904,120]
[336668814,1725006651088,-500.0,0.00038904,120]
[336668815,1725006651098,-500.0,0.00038904,120]
[336668816,1725006651108,-151.0,0.00038921,14]
[336668817,1725006651119,-151.0,0.00038921,14]
[336668818,1725006651130,-5465.4896872,0.00038931,2]
[336668819,1725006651140,-150.112233,0.00039,7]
[336668820,1725006651150,-1000.0,0.00039,39]
[336668821,1725006651159,-1200.0,0.00039006,7]
[336668822,1725006651169,-150.0,0.0003904,2]
[336668823,1725006651181,-461.127098,0.00039104,14]
[336668824,1725006651190,-461.127098,0.00039104,14]
[336668825,1725006651199,-151.0,0.00039104,14]
[336668826,1725006651212,-259.504183,0.00039104,14]
[336668827,1725006651223,-259.504183,0.00039104,14]
[336668828,1725006651234,-150.0,0.00039152,2]
[336668829,1725006651243,-155.560716,0.00039177,14]
[336668830,1725006651253,-155.560716,0.00039177,14]
[336668831,1725006651263,-151.0,0.00039177,14]
[336668832,1725006651273,-151.0,0.00039177,14]
[336668833,1725006651283,-228.080827,0.00039177,14]
[336668834,1725006651292,-228.080827,0.00039177,14]
[336668835,1725006651306,-151.0,0.00039177,14]
[336668836,1725006651316,-748.578485,0.00039177,14]
[336668837,1725006651326,-748.578485,0.00039177,14]
[336668838,1725006651336,-154.099854,0.00039177,14]
[336668839,1725006651346,-500.0,0.00039177,120]
[336668840,1725006651355,-503.6087173,0.00039178,120]
[336668841,1725006651365,-500.0,0.00039178,120]
[336668842,1725006651375,-500.0,0.00039178,120]
[336668843,1725006651385,-500.0,0.00039178,120]
[336668844,1725006651395,-500.0,0.00039178,120]
[336668845,1725006651405,-500.0,0.00039178,120]
[336668846,1725006651415,-500.0,0.00039178,120]
[336668847,1725006651424,-500.0,0.00039178,120]
[336668848,1725006651434,-500.0,0.00039178,120]
[336668849,1725006651444,-628.54683572,0.00039178,120]
[336668850,1725006651453,-500.0,0.00039178,120]
[336668851,1725006651463,-500.0,0.00039178,120]
[336668852,1725006651473,-500.0,0.00039178,120]
[336668853,1725006651483,-313.08744761,0.00039178,120]
[336668854,1725006651492,-500.0,0.00039178,2]
[336668855,1725006651502,-500.0,0.00039178,120]
[336668856,1725006651512,-500.0,0.00039178,120]
[336668857,1725006651521,-500.0,0.00039178,120]
[336668858,1725006651533,-500.0,0.00039178,120]
[336668859,1725006651542,-500.0,0.00039178,120]
[336668860,1725006651552,-407.38,0.00039178,120]
[336668861,1725006651563,-500.0,0.00039178,120]
[336668862,1725006651572,-285.05,0.00039178,120]
[336668863,1725006651582,-304.25,0.00039178,120]
[336668864,1725006651592,-500.0,0.00039178,120]
[336668865,1725006651602,-167.56,0.00039178,120]
[336668866,1725006651612,-174.4,0.00039178,120]
[336668867,1725006651622,-500.0,0.00039178,120]
[336668868,1725006651636,-196.96094043,0.00039178,120]
[336668869,1725006651645,-500.0,0.00039178,120]
[336668870,1725006651655,-568.29,0.00039178,120]
[336668871,1725006651664,-496.60587818,0.00039178,120]
[336668872,1725006651674,-151.0,0.00039178,14]
[336668873,1725006651684,-500.0,0.00039178,120]
[336668874,1725006651695,-151.252544,0.00039178,14]
[336668875,1725006651705,-365.6,0.00039178,120]
[336668876,1725006651716,-500.0,0.00039178,120]
[336668877,1725006651727,-500.0,0.00039178,120]
[336668878,1725006651737,-500.0,0.00039178,120]
[336668879,1725006651747,-500.0,0.00039178,120]
[336668880,1725006651756,-500.0,0.00039178,120]
[336668881,1725006651766,-500.0,0.00039178,120]
[336668882,1725006651776,-500.0,0.00039178,120]
[336668883,1725006651786,-500.0,0.00039178,120]
[336668884,1725006651796,-500.0,0.00039178,120]
[336668885,1725006651806,-500.0,0.00039178,120]
[336668886,1725006651816,-151.0,0.00039178,14]
[336668887,1725006651919,-500.0,0.00039178,120]
[336668888,1725006651930,-243.38,0.00039178,120]
[336668889,1725006651940,-500.0,0.00039178,120]
[336668890,1725006651950,-500.0,0.00039178,120]
[336668891,1725006651960,-500.0,0.00039178,120]
[336668892,1725006651970,-151.0,0.00039178,14]
[336668893,1725006651980,-236.802332,0.00039178,14]
[336668894,1725006651989,-500.0,0.00039178,120]
[336668895,1725006651999,-471.15,0.00039178,120]
[336668896,1725006652009,-205.156618,0.00039178,14]
[336668897,1725006652019,-205.156618,0.00039178,14]
[336668898,1725006652029,-445.5119145,0.00039178,120]
[336668899,1725006652039,-500.0,0.00039178,120]
[336668900,1725006652052,-1153.93,0.00039178,120]
[336668901,1725006652063,-151.0,0.00039178,14]
[336668902,1725006652072,-6248.44,0.00039178,8]
[336668903,1725006652083,-500.0,0.00039178,21]
[336668904,1725006652093,-836.76,0.00039178,120]
[336668905,1725006652103,-622.96,0.00039178,120]
[336668906,1725006652114,-500.0,0.00039178,120]
[336668907,1725006652124,-500.0,0.00039178,120]
[336668908,1725006652134,-271.51082882,0.00039178,120]
[336668909,1725006652145,-301.18,0.00039178,120]
[336668910,1725006652154,-151.0,0.00039178,14]
[336668911,1725006652165,-500.0,0.00039178,120]
[336668912,1725006652175,-500.0,0.00039178,120]
[336668913,1725006652185,-151.0,0.00039178,14]
[336668914,1725006652195,-500.0,0.00039178,120]
[336668915,1725006652205,-500.0,0.00039178,120]
[336668916,1725006652216,-605.75300056,0.00039178,120]
[336668917,1725006652229,-266.002706,0.00039178,14]
[336668918,1725006652240,-500.0,0.00039178,120]
[336668919,1725006652249,-500.0,0.00039178,120]
[336668920,1725006652259,-500.0,0.00039178,120]
[336668921,1725006652268,-500.0,0.00039178,120]
[336668922,1725006652278,-500.0,0.00039178,120]
[336668923,1725006652287,-500.0,0.00039178,120]
[336668924,1725006652296,-500.0,0.00039178,120]
[336668925,1725006652306,-500.0,0.00039178,120]
[336668926,1725006652315,-500.0,0.00039178,120]
[336668927,1725006652324,-461.127098,0.00039178,14]
[336668928,1725006652334,-500.0,0.00039178,120]
[336668929,1725006652344,-500.0,0.00039178,120]
[336668930,1725006652354,-461.127098,0.00039178,14]
[336668931,1725006652364,-530.14587968,0.00039178,120]
[336668932,1725006652373,-500.0,0.00039178,120]
[336668933,1725006652383,-500.0,0.00039178,120]
[336668934,1725006652393,-500.0,0.00039178,120]
[336668935,1725006652403,-500.0,0.00039178,120]
[336668936,1725006652413,-500.0,0.00039178,120]
[336668937,1725006652422,-500.0,0.00039178,120]
[336668938,1725006652432,-192.47314059,0.00039178,120]
[336668939,1725006652442,-500.0,0.00039178,120]
[336668940,1725006652452,-151.0,0.00039178,14]
[336668941,1725006652461,-500.0,0.00039178,120]
[336668942,1725006652472,-500.0,0.00039178,120]
[336668943,1725006652482,-500.0,0.00039178,60]
[336668944,1725006652492,-500.0,0.00039178,120]
[336668945,1725006652501,-500.0,0.00039178,120]
[336668946,1725006652510,-605.67749981,0.00039178,120]
[336668947,1725006652520,-500.0,0.00039178,120]
[336668948,1725006652531,-938.61,0.00039178,120]
[336668949,1725006652542,-1018.82,0.00039178,120]
[336668950,1725006652552,-500.0,0.00039178,120]
[336668951,1725006652561,-500.0,0.00039178,120]
[336668952,1725006652572,-354.59,0.00039178,120]
[336668953,1725006652581,-500.0,0.00039178,120]
[336668954,1725006652591,-500.0,0.00039178,120]
[336668955,1725006652600,-500.0,0.00039178,120]
[336668956,1725006652610,-266.58024788,0.00039178,120]
[336668957,1725006652622,-497.53983266,0.00039178,120]
[336668958,1725006652635,-500.0,0.00039178,120]
[336668959,1725006652645,-500.0,0.00039178,120]
[336668960,1725006652657,-500.0,0.00039178,120]
[336668961,1725006652669,-500.0,0.00039178,120]
[336668962,1725006652679,-500.0,0.00039178,120]
[336668963,1725006652688,-2084.52,0.00039178,120]
[336668964,1725006652698,-500.0,0.00039178,120]
[336668965,1725006652709,-173.284743,0.00039178,14]
[336668966,1725006652719,-500.0,0.00039178,120]
[336668967,1725006652730,-151.0,0.00039178,14]
[336668968,1725006652739,-500.0,0.00039178,120]
[336668969,1725006652749,-173.284743,0.00039178,14]
[336668970,1725006652759,-500.0,0.00039178,120]
[336668971,1725006652769,-500.0,0.00039178,120]
[336668972,1725006652778,-394.95,0.00039178,120]
[336668973,1725006652788,-500.0,0.00039178,120]
[336668974,1725006652798,-500.0,0.00039178,120]
[336668975,1725006652808,-521.97437136,0.00039178,120]
[336668976,1725006652818,-259.504183,0.00039178,14]
[336668977,1725006652828,-500.0,0.00039178,120]
[336668978,1725006652837,-1373.0,0.00039178,120]
[336668979,1725006652846,-500.0,0.00039178,120]
[336668980,1725006652856,-259.504183,0.00039178,14]
[336668981,1725006652865,-500.0,0.00039178,120]
[336668982,1725006652875,-657.52,0.00039178,120]
[336668983,1725006652884,-1026.36,0.00039178,120]
[336668984,1725006652894,-553.29,0.00039178,120]
[336668985,1725006652904,-500.0,0.00039178,120]
[336668986,1725006652914,-500.0,0.00039178,120]
[336668987,1725006652924,-373.234395,0.00039178,14]
[336668988,1725006652934,-373.234393,0.00039178,14]
[336668989,1725006652944,-500.0,0.00039178,120]
[336668990,1725006652954,-500.0,0.00039178,120]
[336668991,1725006652964,-500.0,0.00039178,120]
[336668992,1725006652975,-500.0,0.00039178,120]
[336668993,1725006652984,-1762.24,0.00039178,120]
[336668994,1725006652994,-500.0,0.00039178,120]
[336668995,1725006653004,-500.0,0.00039178,120]
[336668996,1725006653014,-500.0,0.00039178,120]
[336668997,1725006653024,-500.0,0.00039178,120]
[336668998,1725006653034,-500.0,0.00039178,120]
[336668999,1725006653044,-500.0,0.00039178,120]
[336669000,1725006653053,-500.0,0.00039178,120]
[336669001,1725006653063,-500.0,0.00039178,120]
[336669002,1725006653073,-500.0,0.00039178,120]
[336669003,1725006653082,-150.0,0.00039216,2]
[336669004,1725006653092,-332.93268123,0.00039237,7]
[336669005,1725006653108,-567.06731877,0.00039237,7]
[336669006,1725006653117,-5465.48968724,0.00039244,2]
[336669007,1725006653127,-500.0,0.00039294,7]
[336669008,1725006653136,-1200.0,0.0003933,7]
[336669009,1725006653145,-600.0,0.00039385,7]
[336669010,1725006653155,-500.0,0.00039412,7]
[336669011,1725006653165,-500.0,0.00039452,120]
[336669012,1725006653174,-614.50715078,0.00039452,120]
[336669013,1725006653184,-500.0,0.00039452,120]
[336669014,1725006653194,-502.81174126,0.00039452,120]
[336669015,1725006653203,-500.0,0.00039452,120]
[336669016,1725006653212,-500.0,0.00039452,120]
[336669017,1725006653222,-500.0,0.00039452,120]
[336669018,1725006653242,-487.09,0.00039452,120]
[336669019,1725006653252,-500.0,0.00039452,120]
[336669020,1725006653261,-501.71882205,0.00039452,2]
[336669021,1725006653272,-500.0,0.00039452,120]
[336669022,1725006653281,-500.0,0.00039452,120]
[336669023,1725006653291,-500.0,0.00039452,120]